fUSD/lending_fUSD_20240123
["ID","MTS","AMOUNT","RATE_DAILY","PERIOD"]
[312583896,1706028641867,-239.65069741,0.000257,2]
[312583897,1706028641876,-187.79,0.00025898,2]
[312583898,1706028641885,-1000.0,0.00026033,2]
[312583900,1706028641894,-162.8,0.00026546,2]
[312583902,1706028641903,-1624.0,0.00026575,2]
[312583903,1706028641913,-1057.6,0.00026575,2]
[312583904,1706028641922,-166.29551274,0.00026703,2]
[312583905,1706028641931,-200.0,0.00026886,2]
[312583906,1706028641940,-200.0,0.00026886,2]
[312583907,1706028641948,-169.91,0.00027397,2]
[312583908,1706028641958,-556.02380392,0.00028,2]
[312583909,1706028641967,-200.0,0.0002816,4]
[312583910,1706028641976,-187.79,0.00028162,2]
[312583911,1706028641985,-162.8,0.00028601,2]
[312583912,1706028641994,-1000.0,0.00028636,2]
[312583913,1706028642004,-200.0,0.00029434,6]
[312583914,1706028642013,-282.76563896,0.00029596,4]
[312583915,1706028642023,-192.291184,0.0003,2]
[312583916,1706028642032,-9643.13201467,0.0003,2]
[312583917,1706028642041,-692.52631931,0.0003,2]
[312583918,1706028642051,-583.13958922,0.0003,2]
[312583919,1706028642060,-5623.87809387,0.0003,2]
[312583920,1706028642070,-393.68225135,0.00030118,4]
[312583921,1706028642080,-24763.68057005,0.00030322,2]
[312583965,1706028643568,-895.48954311,0.00030322,2]
[312583978,1706028643684,-112223.62867704,0.00030322,2]
[312583981,1706028643697,-7437.07761736,0.00030322,2]
[312583983,1706028643708,-21435.62669244,0.00030322,2]
[312583985,1706028643718,-1136.8526006,0.0003042,4]
[312583987,1706028643727,-155.0,0.0003042,4]
[312583989,1706028643737,-155.0,0.00030421,4]
[312583991,1706028643746,-202.0593939,0.00030422,4]
[312583993,1706028643756,-529.64571731,0.00030422,4]
[312583995,1706028643767,-473.54978766,0.00030422,4]
[312583997,1706028643776,-867.65374985,0.00030422,2]
[312584000,1706028643786,-10388.53272643,0.00030422,4]
[312584003,1706028643808,-476.40379189,0.00030422,4]
[312584005,1706028643818,-270.28714603,0.00030422,4]
[312584006,1706028643827,-155.4249365,0.00030422,4]
[312584007,1706028643836,-246.33521087,0.00030422,4]
[312584008,1706028643846,-88.94891471,0.00030422,4]
[312584048,1706028646586,-301.21340696,0.00030321,4]
[312584049,1706028646596,-485.24377081,0.00030321,4]
[312584050,1706028646605,-2678.90182877,0.00030321,4]
[312584051,1706028646706,-14093.75795428,0.00030321,4]
[312584052,1706028646716,-67.18099842,0.00030422,4]
[312584053,1706028646726,-3145.34192243,0.00030422,4]
[312584054,1706028646735,-244.03754109,0.00030422,4]
[312584055,1706028646745,-161.08246614,0.00030422,4]
[312584056,1706028646754,-1108.44967788,0.00030422,2]
[312584057,1706028646764,-4273.6526089,0.00030422,4]
[312584058,1706028646773,-1171.61755454,0.00030422,4]
[312584059,1706028646783,-387.06249631,0.00030422,4]
[312584060,1706028646793,-2021.63368147,0.00030423,4]
[312584061,1706028646802,-364.29623215,0.00030423,4]
[312584062,1706028646812,-187.79,0.00030426,2]
[312584063,1706028646822,-200.0,0.00030707,8]
[312584064,1706028646831,-200.0,0.00030942,2]
[312584065,1706028646841,-4262.34281777,0.00030942,15]
[312584066,1706028646850,-1000.0,0.00031239,2]
[312584067,1706028646860,-200.0,0.00031981,10]
[312584068,1706028646870,-150.0,0.00032,2]
[312584069,1706028646879,-166.29551274,0.00032286,2]
[312584070,1706028646889,-187.79,0.00032689,2]
[312584071,1706028646899,-510.90938196,0.000327,2]
[312584072,1706028646909,-510.90938178,0.000327,2]
[312584073,1706028646919,-510.90938178,0.000327,2]
[312584074,1706028646929,-510.90938178,0.000327,2]
[312584075,1706028646938,-510.90938178,0.000327,2]
[312584076,1706028646948,-510.90938178,0.000327,2]
[312584077,1706028646958,-510.90938178,0.000327,2]
[312584078,1706028646968,-510.90938178,0.000327,2]
[312584079,1706028646978,-510.90938178,0.000327,2]
[312584080,1706028646988,-510.90938178,0.000327,2]
[312584081,1706028646998,-510.90938178,0.000327,2]
[312584082,1706028647007,-510.90938178,0.000327,2]
[312584083,1706028647017,-510.90938178,0.000327,2]
[312584084,1706028647026,-373.05,0.00032877,2]
[312584085,1706028647036,-1206.3,0.00032877,15]
[312584086,1706028647046,-3980.57066427,0.00033,4]
[312584087,1706028647056,-600.0,0.00033,2]
[312584088,1706028647066,-2664.39531459,0.00033249,4]
[312584089,1706028647076,-200.0,0.00033254,13]
[312584090,1706028647086,-282.76563896,0.00033657,6]
[312584091,1706028647096,-1000.0,0.00034,4]
[312584092,1706028647105,-150.0,0.00034,2]
[312584093,1706028647115,-155.0,0.00034,2]
[312584094,1706028647125,-5000.0,0.0003409,2]
[312584095,1706028647135,-200.0,0.00034528,15]
[312584096,1706028647146,-150.0,0.00034548,10]
[312584097,1706028647156,-151.41324109,0.00034548,2]
[312584098,1706028647166,-1000.0,0.0003455,2]
[312584099,1706028647175,-150.0,0.00034604,2]
[312584100,1706028647186,-12411.53443519,0.0003465,2]
[312584101,1706028647196,-185.82104,0.0003467,2]
[312584102,1706028647475,-185.82105,0.0003467,2]
[312584103,1706028647485,-185.82104,0.0003467,2]
[312584104,1706028647494,-185.82104,0.0003467,2]
[312584105,1706028647504,-185.82105,0.0003467,2]
[312584106,1706028647515,-185.82104,0.0003467,2]
[312584107,1706028647525,-163.45613215,0.000349,2]
[312584108,1706028647534,-507.39456794,0.000349,2]
[312584109,1706028647543,-187.79,0.00034953,2]
[312584110,1706028647553,-400.0,0.00034999,2]
[312584111,1706028647563,-1178.97298307,0.00034999,4]
[312584112,1706028647572,-203.41344144,0.00034999,4]
[312584113,1706028647583,-286.83969143,0.00034999,4]
[312584114,1706028647592,-295.46369111,0.00034999,4]
[312584115,1706028647603,-100000.0,0.00035,15]
[312584116,1706028647612,-700.0,0.00035,3]
[312584117,1706028647623,-155.0,0.00035,4]
[312584118,1706028647632,-2000.0,0.00035,2]
[312584119,1706028647642,-449.63,0.00035,7]
[312584120,1706028647651,-200.0,0.00035802,17]
[312584121,1706028647660,-400.0,0.000359,13]
[312584122,1706028647669,-162.69560449,0.0003599,2]
[312584123,1706028647679,-100000.0,0.00036,16]
[312584124,1706028647689,-5000.0,0.00036,3]
[312584125,1706028647698,-9457.03652107,0.00036,7]
[312584126,1706028647708,-156.77812037,0.00036,30]
[312584127,1706028647717,-3897.404394,0.00036,4]
[312584128,1706028647726,-433.81782231,0.00036005,2]
[312584129,1706028647735,-200.0,0.00036451,5]
[312584130,1706028647745,-1206.3,0.00036613,15]
[312584131,1706028647753,-226.0,0.00036708,2]
[312584132,1706028647762,-426.0,0.00036749,2]
[312584133,1706028647771,-5000.0,0.000369,3]
[312584134,1706028647780,-202.25497978,0.0003699,5]
[312584135,1706028647789,-100000.0,0.00037,17]
[312584136,1706028647798,-750.0,0.00037,3]
[312584137,1706028647808,-700.0,0.00037,2]
[312584138,1706028647817,-4719.54258201,0.00037,7]
[312584139,1706028647827,-150.0,0.00037,2]
[312584140,1706028647836,-150.0,0.00037,2]
[312584141,1706028647845,-150.0,0.00037,2]
[312584142,1706028647855,-150.0,0.00037,2]
[312584143,1706028647866,-150.0,0.00037,2]
[312584144,1706028647875,-150.0,0.00037,2]
[312584145,1706028647884,-150.0,0.00037,2]
[312584146,1706028647894,-150.0,0.00037,2]
[312584147,1706028647903,-150.0,0.00037,2]
[312584148,1706028647912,-150.0,0.00037,2]
[312584149,1706028647922,-150.0,0.00037,2]
[312584150,1706028647931,-150.0,0.00037,2]
[312584151,1706028647942,-150.0,0.00037,2]
[312584152,1706028647952,-150.0,0.00037,2]
[312584153,1706028647961,-150.0,0.00037,2]
[312584154,1706028647970,-150.0,0.00037,2]
[312584155,1706028647979,-150.0,0.00037,2]
[312584156,1706028647990,-150.0,0.00037,2]
[312584157,1706028648000,-150.0,0.00037,2]
[312584158,1706028648010,-150.0,0.00037,2]
[312584159,1706028648020,-150.0,0.00037,2]
[312584160,1706028648029,-150.0,0.00037,2]
[312584161,1706028648038,-200.0,0.00037075,19]
[312584162,1706028648048,-1500.0,0.00037162,2]
[312584163,1706028648058,-187.79,0.00037217,2]
[312584164,1706028648068,-1500.0,0.00037314,2]
[312584165,1706028648077,-300.0,0.0003732,2]
[312584166,1706028648087,-150.0,0.00037328,2]
[312584167,1706028648096,-300.0,0.00037411,2]
[312584168,1706028648106,-256.1040318,0.00037418,2]
[312584169,1706028648115,-1500.0,0.00037475,2]
[312584170,1706028648124,-1500.0,0.00037495,2]
[312584171,1706028648134,-150.0,0.000375,2]
[312584172,1706028648144,-1500.0,0.00037509,2]
[312584173,1706028648153,-156.29371843,0.00037545,2]
[312584174,1706028648163,-239.24088123,0.00037548,2]
[312584175,1706028648173,-300.0,0.00037566,2]
[312584176,1706028648184,-151.32,0.00037584,5]
[312584177,1706028648195,-150.64,0.00037587,5]
[312584178,1706028648205,-150.0,0.00037587,2]
[312584179,1706028648214,-152.66,0.00037592,5]
[312584180,1706028648223,-200.0,0.00037596,5]
[312584181,1706028648232,-800.0,0.00037597,5]
[312584182,1706028648241,-7777.48920477,0.000376,10]
[312584183,1706028648250,-150.0,0.00037623,2]
[312584184,1706028648259,-150.0,0.00037625,2]
[312584185,1706028648268,-150.0,0.0003763,2]
[312584186,1706028648276,-150.0,0.00037633,2]
[312584187,1706028648285,-150.0,0.00037634,2]
[312584188,1706028648295,-150.0,0.00037635,2]
[312584189,1706028648304,-150.0,0.00037636,2]
[312584190,1706028648313,-150.0,0.00037637,2]
[312584191,1706028648322,-150.0,0.00037642,2]
[312584192,1706028648331,-150.0,0.00037646,2]
[312584193,1706028648340,-150.0,0.0003765,2]
[312584194,1706028648349,-150.0,0.00037653,2]
[312584195,1706028648359,-150.0,0.00037655,2]
[312584196,1706028648368,-150.0,0.00037655,2]
[312584197,1706028648378,-150.0,0.00037657,2]
[312584198,1706028648389,-150.0,0.00037659,2]
[312584199,1706028648399,-150.0,0.0003766,2]
[312584200,1706028648409,-150.0,0.00037665,2]
[312584201,1706028648419,-150.0,0.00037666,2]
[312584202,1706028648428,-1500.0,0.00037666,2]
[312584203,1706028648437,-150.0,0.00037667,2]
[312584204,1706028648446,-150.0,0.0003767,2]
[312584205,1706028648455,-150.0,0.0003767,2]
[312584206,1706028648465,-1500.0,0.00037671,2]
[312584207,1706028648474,-150.0,0.00037674,2]
[312584208,1706028648484,-1426.28501521,0.00037674,2]
[312584209,1706028648493,-150.0,0.00037678,2]
[312584210,1706028648502,-150.0,0.00037679,2]
[312584211,1706028648511,-150.0,0.0003768,2]
[312584212,1706028648521,-150.0,0.00037687,2]
[312584213,1706028648530,-150.0,0.00037693,2]
[312584214,1706028648539,-150.0,0.00037697,2]
[312584215,1706028648548,-150.0,0.00037699,2]
[312584216,1706028648557,-158.3,0.000377,3]
[312584217,1706028648566,-153.0,0.000377,3]
[312584218,1706028648575,-1134.57,0.000377,3]
[312584219,1706028648584,-1134.57,0.000377,3]
[312584220,1706028648593,-1134.57,0.000377,3]
[312584221,1706028648603,-1134.57,0.000377,3]
[312584222,1706028648612,-1134.57,0.000377,3]
[312584223,1706028648622,-1134.57,0.000377,3]
[312584224,1706028648631,-1134.57,0.000377,3]
[312584225,1706028648640,-1134.57,0.000377,3]
[312584226,1706028648649,-1134.57,0.000377,3]
[312584227,1706028648659,-1134.57,0.000377,3]
[312584228,1706028648669,-1134.57,0.000377,3]
[312584229,1706028648678,-1134.57,0.000377,3]
[312584230,1706028648688,-1134.57,0.000377,3]
[312584231,1706028648697,-1134.57,0.000377,3]
[312584232,1706028648707,-1134.57,0.000377,3]
[312584233,1706028648717,-1134.57,0.000377,3]
[312584234,1706028648727,-1134.57,0.000377,3]
[312584235,1706028648738,-1134.57,0.000377,3]
[312584236,1706028648747,-1134.57,0.000377,3]
[312584237,1706028648759,-1134.57,0.000377,3]
[312584238,1706028648768,-150.0,0.00037706,2]
[312584239,1706028648778,-150.0,0.00037707,2]
[312584240,1706028648788,-150.0,0.00037711,2]
[312584241,1706028648799,-150.0,0.00037713,2]
[312584242,1706028648809,-150.0,0.00037714,2]
[312584243,1706028648818,-150.0,0.00037716,2]
[312584244,1706028648827,-282.76563896,0.00037718,8]
[312584245,1706028648836,-150.0,0.00037718,2]
[312584246,1706028648845,-150.0,0.00037722,2]
[312584247,1706028648854,-300.0,0.00037723,2]
[312584248,1706028648862,-150.0,0.00037724,2]
[312584249,1706028648873,-150.0,0.00037726,2]
[312584250,1706028648883,-150.0,0.00037726,2]
[312584251,1706028648892,-150.0,0.00037727,2]
[312584252,1706028648902,-150.0,0.00037728,2]
[312584253,1706028648911,-150.0,0.00037729,2]
[312584254,1706028648920,-150.0,0.00037729,2]
[312584255,1706028648930,-150.0,0.0003773,2]
[312584256,1706028648939,-150.0,0.00037735,2]
[312584257,1706028648949,-150.0,0.00037736,2]
[312584258,1706028648959,-150.0,0.00037739,2]
[312584259,1706028648969,-150.0,0.0003774,2]
[312584260,1706028648979,-150.0,0.00037742,2]
[312584261,1706028648989,-150.0,0.00037743,2]
[312584262,1706028648998,-300.0,0.00037744,2]
[312584263,1706028649009,-150.0,0.00037746,2]
[312584264,1706028649019,-150.0,0.00037751,2]
[312584265,1706028649029,-150.0,0.00037752,2]
[312584266,1706028649038,-150.0,0.00037757,2]
[312584267,1706028649048,-150.0,0.00037763,2]
[312584268,1706028649057,-150.0,0.00037764,2]
[312584269,1706028649067,-150.0,0.00037764,2]
[312584270,1706028649076,-150.0,0.00037771,2]
[312584271,1706028649086,-150.0,0.00037775,2]
[312584272,1706028649095,-150.0,0.00037777,2]
[312584273,1706028649105,-150.0,0.00037781,2]
[312584274,1706028649116,-150.0,0.00037784,2]
[312584275,1706028649128,-150.0,0.00037785,2]
[312584276,1706028649137,-150.0,0.00037785,2]
[312584277,1706028649146,-150.0,0.00037785,2]
[312584278,1706028649156,-150.0,0.00037786,2]
[312584279,1706028649165,-150.0,0.00037791,2]
[312584280,1706028649174,-150.0,0.00037792,2]
[312584281,1706028649183,-166.91230757,0.00037794,2]
[312584282,1706028649193,-150.0,0.00037794,2]
[312584283,1706028649202,-2000.0,0.000378,4]
[312584284,1706028649211,-184.71706285,0.000378,11]
[312584285,1706028649220,-900.0,0.000378,13]
[312584286,1706028649229,-150.0,0.00037806,2]
[312584287,1706028649240,-150.0,0.00037806,2]
[312584288,1706028649249,-1624.0,0.00037808,2]
[312584289,1706028649258,-1057.6,0.00037808,2]
[312584290,1706028649267,-150.0,0.0003781,2]
[312584291,1706028649276,-150.0,0.00037811,2]
[312584292,1706028649284,-1500.0,0.00037812,2]
[312584293,1706028649294,-150.0,0.00037815,2]
[312584294,1706028649303,-150.0,0.00037815,2]
[312584295,1706028649312,-150.0,0.0003782,2]
[312584296,1706028649322,-150.0,0.0003782,2]
[312584297,1706028649331,-150.0,0.00037821,2]
[312584298,1706028649340,-150.0,0.00037823,2]
[312584299,1706028649349,-150.0,0.00037825,2]
[312584300,1706028649359,-150.0,0.00037826,2]
[312584301,1706028649371,-150.0,0.00037827,2]
[312584302,1706028649380,-150.0,0.00037827,2]
[312584303,1706028649389,-150.0,0.00037832,2]
[312584304,1706028649398,-150.0,0.00037846,2]
[312584305,1706028649408,-202.25903178,0.00037847,2]
[312584306,1706028649417,-150.0,0.00037853,2]
[312584307,1706028649427,-150.0,0.00037854,2]
[312584308,1706028649435,-150.0,0.00037855,2]
[312584309,1706028649444,-150.0,0.00037856,2]
[312584310,1706028649454,-150.0,0.00037858,2]
[312584311,1706028649463,-1500.0,0.00037868,2]
[312584312,1706028649472,-185.63118467,0.00037868,2]
[312584313,1706028649481,-183.11620058,0.00037868,2]
[312584314,1706028649489,-3059.19073318,0.00037868,2]
[312584315,1706028649498,-166.29551274,0.00037868,2]
[312584316,1706028649508,-150.0,0.00037869,2]
[312584317,1706028649517,-150.0,0.00037874,2]
[312584318,1706028649526,-150.0,0.00037874,2]
[312584319,1706028649536,-150.0,0.00037875,2]
[312584320,1706028649545,-150.0,0.00037878,2]
[312584321,1706028649555,-150.0,0.00037879,2]
[312584322,1706028649567,-150.0,0.00037881,2]
[312584323,1706028649577,-150.0,0.00037882,2]
[312584324,1706028649587,-150.0,0.00037883,2]
[312584325,1706028649598,-150.0,0.00037884,2]
[312584326,1706028649607,-150.0,0.00037886,2]
[312584327,1706028649618,-150.98,0.00037892,5]
[312584328,1706028649628,-150.0,0.00037892,2]
[312584329,1706028649640,-20000.0,0.00037895,5]
[312584330,1706028649649,-307.42593914,0.00037896,4]
[312584331,1706028649658,-241.08864406,0.00037896,4]
[312584332,1706028649670,-1811.85535508,0.00037896,4]
[312584333,1706028649679,-297.71195714,0.00037896,4]
[312584334,1706028649688,-537.20957409,0.00037896,4]
[312584335,1706028649697,-264.48223811,0.00037896,4]
[312584336,1706028649707,-156.93056967,0.00037896,4]
[312584337,1706028649716,-345.76613305,0.00037896,4]
[312584338,1706028649726,-222.22287169,0.00037896,4]
[312584339,1706028649739,-177.44890332,0.00037897,4]
[312584340,1706028649753,-209.38155424,0.00037897,2]
[312584341,1706028649767,-766.87003814,0.00037897,2]
[312584342,1706028649781,-155.45683396,0.00037897,4]
[312584343,1706028649792,-624.03501934,0.000379,2]
[312584344,1706028649806,-311.63637336,0.000379,14]
[312584345,1706028649819,-1300.0,0.000379,13]
[312584346,1706028649833,-147339.15278743,0.000379,2]
[312584348,1706028981033,-336.45922871,0.00023,20]
[312584349,1706028981057,-1184.27940036,0.00029,15]
[312584350,1706028981083,-201.0,0.00031003,10]
[312584351,1706028981107,-201.0,0.00032709,13]
[312584352,1706028981133,-201.0,0.00034415,16]
[312584353,1706028981160,-100000.0,0.00035,15]
[312584354,1706028981184,-100000.0,0.00036,16]
[312584355,1706028981208,-201.0,0.0003612,19]
[312584356,1706028981232,-100000.0,0.00037,17]
[312584357,1706028981256,-201.0,0.00037826,22]
[312584358,1706028981279,-221.4202,0.00037858,15]
[312584359,1706028981303,-3653.67003425,0.000379,15]
[312584360,1706028981326,-100000.0,0.00038,18]
[312584361,1706028981350,-7777.48920469,0.00038718,12]
[312584362,1706028981374,-5074.87732679,0.000389,15]
[312584363,1706028981396,-1800.0,0.000389,14]
[312584364,1706028981419,-100000.0,0.00039,19]
[312584365,1706028981441,-359.62041276,0.00039051,30]
[312584366,1706028981465,-50000.0,0.00039052,30]
[312584367,1706028981491,-6283.36932053,0.00039052,19]
[312584368,1706028981516,-8856.41210833,0.00039052,19]
[312584369,1706028981539,-4838.79109437,0.00039052,19]
[312584370,1706028981566,-2669.36569088,0.00039052,13]
[312584371,1706028981588,-53967.09645091,0.00039052,22]
[312584372,1706028981612,-8118.98424345,0.00039052,19]
[312584373,1706028981642,-201.0,0.00039532,25]
[312584374,1706028981664,-7777.48920469,0.00039836,13]
[312584375,1706028981687,-100000.0,0.0004,30]
[312584376,1706028981709,-599.99999901,0.0004,41]
[312584377,1706028981731,-399.30378371,0.0004,30]
[312584378,1706028981754,-238.59956798,0.0004,30]
[312584379,1706028981775,-18333.90027461,0.0004,15]
[312584380,1706028981797,-840.46544948,0.0004,15]
[312584381,1706028981820,-255.0,0.0004,12]
[312584382,1706028981842,-255.0,0.0004,12]
[312584383,1706028981863,-255.0,0.0004,12]
[312584384,1706028981886,-255.0,0.0004,12]
[312584385,1706028981911,-255.0,0.0004,12]
[312584386,1706028981933,-255.0,0.0004,12]
[312584387,1706028981956,-116786.37215967,0.0004,15]
[312584388,1706028981980,-255.0,0.0004,12]
[312584389,1706028982003,-385.75198969,0.0004001,15]
[312584390,1706028982026,-1206.3,0.00040349,15]
[312584391,1706028982054,-2200.0,0.000409,14]
[312584392,1706028982075,-154.47003516,0.000409,20]
[312584393,1706028982100,-7777.48920469,0.00040955,15]
[312584394,1706028982125,-100000.0,0.00041,31]
[312584395,1706028982149,-1896.10052287,0.00041,15]
[312584396,1706028982173,-500.0,0.00041095,70]
[312584397,1706028982195,-558.59900753,0.00041095,71]
[312584398,1706028982217,-151.0,0.00041096,14]
[312584399,1706028982239,-151.0,0.00041096,14]
[312584400,1706028982262,-151.0,0.00041096,14]
[312584401,1706028982285,-794.287927,0.00041096,14]
[312584402,1706028982307,-794.287927,0.00041096,14]
[312584403,1706028982329,-151.0,0.00041096,14]
[312584404,1706028982352,-151.0,0.00041096,14]
[312584405,1706028982378,-1000.0,0.00041236,15]
[312584406,1706028982402,-1000.0,0.00041236,15]
[312584407,1706028982427,-1000.0,0.00041236,15]
[312584408,1706028982453,-1000.0,0.00041236,15]
[312584409,1706028982480,-1000.0,0.00041236,15]
[312584410,1706028982719,-1000.0,0.00041236,15]
[312584411,1706028982744,-201.0,0.00041237,28]
[312584412,1706028982772,-150.0,0.00041999,60]
[312584413,1706028982794,-500.0,0.00041999,60]
[312584414,1706028982817,-100000.0,0.00042,32]
[312584415,1706028982839,-519.93190037,0.00042,30]
[312584416,1706028982862,-7777.48920469,0.00042073,16]
[312584417,1706028982886,-201.0,0.00042943,31]
[312584418,1706028982908,-150.0,0.00042999,60]
[312584419,1706028982931,-100000.0,0.00043,33]
[312584420,1706028982952,-7777.48920469,0.00043191,17]
[312584421,1706028982974,-500.0,0.00043836,34]
[312584422,1706028982995,-184.71706284,0.0004385,18]
[312584423,1706028983017,-150.0,0.00043999,60]
[312584424,1706028983040,-100000.0,0.00044,34]
[312584425,1706028983062,-151.37376088,0.00044,15]
[312584426,1706028983086,-151.37376088,0.00044,16]
[312584427,1706028983110,-151.37376088,0.00044,18]
[312584428,1706028983133,-151.37376088,0.00044,15]
[312584429,1706028983157,-151.37376088,0.00044,16]
[312584430,1706028983179,-151.37376088,0.00044,14]
[312584431,1706028983202,-151.37376088,0.00044,16]
[312584432,1706028983226,-151.37376088,0.00044,14]
[312584433,1706028983247,-151.37376088,0.00044,18]
[312584434,1706028983269,-151.37376088,0.00044,15]
[312584435,1706028983292,-151.37376088,0.00044,17]
[312584436,1706028983315,-151.37376088,0.00044,16]
[312584437,1706028983337,-151.37376088,0.00044,16]
[312584438,1706028983359,-151.37376088,0.00044,18]
[312584439,1706028983381,-151.37376088,0.00044,17]
[312584440,1706028983402,-151.37376088,0.00044,18]
[312584441,1706028983424,-151.37376088,0.00044,18]
[312584442,1706028983447,-151.37376088,0.00044,18]
[312584443,1706028983469,-151.37376088,0.00044,18]
[312584444,1706028983494,-151.37376088,0.00044,14]
[312584445,1706028983516,-151.37376088,0.00044,18]
[312584446,1706028983538,-151.37376088,0.00044,18]
[312584447,1706028983562,-151.37376088,0.00044,17]
[312584448,1706028983584,-151.37376088,0.00044,16]
[312584449,1706028983606,-151.37376088,0.00044,16]
[312584450,1706028983629,-151.37376088,0.00044,18]
[312584451,1706028983652,-151.37376088,0.00044,15]
[312584452,1706028983674,-151.37376088,0.00044,15]
[312584453,1706028983697,-151.37376088,0.00044,14]
[312584454,1706028983719,-151.37376088,0.00044,16]
[312584455,1706028983741,-151.37376088,0.00044,17]
[312584456,1706028983763,-151.37376088,0.00044,14]
[312584457,1706028983785,-151.37376088,0.00044,17]
[312584458,1706028983808,-151.37376088,0.00044,17]
[312584459,1706028983830,-151.37376088,0.00044,15]
[312584460,1706028983853,-151.37376088,0.00044,15]
[312584461,1706028983877,-151.37376088,0.00044,16]
[312584462,1706028983899,-151.37376088,0.00044,18]
[312584463,1706028983921,-151.37376088,0.00044,14]
[312584464,1706028983945,-151.37376088,0.00044,18]
[312584465,1706028983968,-151.37376088,0.00044,15]
[312584466,1706028983991,-151.37376088,0.00044,16]
[312584467,1706028984015,-151.37376088,0.00044,18]
[312584468,1706028984037,-151.37376088,0.00044,17]
[312584469,1706028984061,-151.37376088,0.00044,16]
[312584470,1706028984084,-151.37376088,0.00044,18]
[312584471,1706028984106,-151.37376088,0.00044,18]
[312584472,1706028984129,-151.37376088,0.00044,17]
[312584473,1706028984155,-151.37376088,0.00044,17]
[312584474,1706028984178,-172.0,0.00044,90]
[312584475,1706028984203,-1206.3,0.00044085,15]
[312584476,1706028984228,-7777.48920469,0.00044309,19]
[312584477,1706028984251,-171585.0,0.00044557,10]
[312584478,1706028984276,-201.0,0.00044649,33]
[312584479,1706028984297,-151.0,0.00044999,14]
[312584480,1706028984319,-151.0,0.00044999,14]
[312584481,1706028984341,-151.0,0.00044999,14]
[312584482,1706028984365,-794.287927,0.00044999,14]
[312584483,1706028984390,-794.287927,0.00044999,14]
[312584484,1706028984412,-151.0,0.00044999,14]
[312584485,1706028984435,-151.0,0.00044999,14]
[312584486,1706028984460,-100000.0,0.00045,35]
[312584487,1706028984485,-151.0,0.00045,14]
[312584488,1706028984507,-151.0,0.00045,14]
[312584489,1706028984530,-156.246421,0.00045,14]
[312584490,1706028984554,-990.0,0.00045,30]
[312584491,1706028984576,-990.0,0.00045,30]
[312584492,1706028984597,-990.0,0.00045,30]
[312584493,1706028984619,-990.0,0.00045,30]
[312584494,1706028984645,-990.0,0.00045,30]
[312584495,1706028984667,-990.0,0.00045,30]
[312584496,1706028984689,-815.30050113,0.00045,30]
[312584497,1706028984710,-151.0,0.00045,14]
[312584498,1706028984734,-151.0,0.00045,14]
[312584499,1706028984758,-151.0,0.00045,14]
[312584500,1706028984781,-151.0,0.00045,14]
[312584501,1706028984803,-153.4165,0.00045,30]
[312584502,1706028984825,-207.00143064,0.00045,24]
[312584503,1706028984846,-423.09675508,0.00045,60]
[312584504,1706028984869,-7777.48920469,0.00045427,20]
[312584505,1706028984892,-169.94006734,0.0004548,27]
[312584506,1706028984915,-100000.0,0.00046,36]
[312584507,1706028984936,-151.0,0.00046,14]